bitfinex/quotes_SOLUSD_20240809
["timestamp","ask_amount","ask_price","bid_price","bid_amount"]
[1723164145901,1.54381514,161.96,161.91,6.3109]
[1723164146158,32.86,161.97,161.9,15.5008]
[1723164146368,6.174,161.97,161.91,6.1762]
[1723164146532,39.0335,161.99,161.93,6.1753]
[1723164146832,32.86,161.97,161.91,21.6161]
[1723164147032,1.54374837,161.96,161.91,15.4403]
[1723164147229,6.1752,161.94,161.9,15.5008]
[1723164147736,32.86,161.95,161.89,6.177]
[1723164147929,32.86,161.95,161.9,6.1766]
[1723164148154,32.86,161.95,161.87,15.4439]
[1723164148155,39.0348,161.95,161.88,6.1771]
[1723164148352,6.1751,161.94,161.88,6.1771]
[1723164148864,39.0347,161.95,161.88,6.1771]
[1723164149165,32.86,161.93,161.87,21.6215]
[1723164149381,32.86,161.93,161.88,6.1772]
[1723164149666,6.1748,161.95,161.89,6.177]
[1723164149867,32.86,161.94,161.86,0.843317]
[1723164150161,32.86,161.94,161.86,16.288417]
[1723164150333,1.54433476,161.93,161.86,16.288417]
[1723164150749,46.54433476,161.93,161.86,16.288417]
[1723164150951,45.0,161.93,161.86,22.466117]
[1723164151155,39.0354,161.94,161.87,6.1777]
[1723164151380,32.86,161.94,161.88,6.1773]
[1723164151588,32.86,161.94,161.86,16.288417]
[1723164151753,46.54419511,161.93,161.86,16.288417]
[1723164151955,32.86,161.92,161.86,0.843317]
[1723164152152,32.86,161.9,161.86,0.843317]
[1723164152385,39.037,161.9,161.86,0.843317]
[1723164152679,0.61443933,161.87,161.86,0.843317]
[1723164154288,0.61443933,161.87,161.86,7.021417]
[1723164154788,0.61443933,161.87,161.86,0.843317]
[1723164157559,0.61443933,161.87,161.86,7.021417]
[1723164157855,0.61443933,161.87,161.86,0.843317]
[1723164159595,6.79213933,161.87,161.86,0.843317]
[1723164160705,0.61443933,161.87,161.86,0.843317]
[1723164161878,0.61443933,161.87,161.86,7.021417]
[1723164162403,0.61443933,161.87,161.86,0.843317]
[1723164163392,20.0,162.06,161.86,0.843317]
[1723164163393,6.40740194,161.97,161.89,15.4425]
[1723164163696,9.68162577,162.0,161.92,48.2992]
[1723164163877,9.68162577,162.0,161.93,1.23468455]
[1723164164300,9.68162577,162.0,161.92,15.4392]
[1723164164499,9.68162577,162.0,161.9,60.5335]
[1723164164676,9.68162577,162.0,161.91,6.1762]
[1723164164876,9.68162577,162.0,161.93,15.4387]
[1723164165071,9.68162577,162.0,161.95,6.1747]
[1723164165299,15.85442577,162.0,161.93,16.67335842]
[1723164165497,9.68162577,162.0,161.94,6.1749]
[1723164165685,9.68162577,162.0,161.93,21.6141]
[1723164166101,42.54162577,162.0,161.9,69.7988]
[1723164166429,44.08529695,162.0,161.91,6.1761]
[1723164166599,9.68162577,162.0,161.93,32.86]
[1723164166776,32.86,162.07,161.95,32.86]
[1723164166975,9.6777108,162.03,161.95,32.86]
[1723164167207,32.86,162.05,161.96,15.4358]
[1723164167410,32.86,162.05,161.93,32.86]
[1723164167709,9.67921933,162.02,161.92,15.4389]
[1723164168708,6.1728,162.0,161.94,6.175]
[1723164169005,6.1724,162.01,161.96,6.1743]
[1723164169202,9.67921933,162.02,161.94,6.1751]
[1723164169424,6.1727,162.01,161.95,1.23477149]
[1723164169612,6.173,162.0,161.96,1.23461472]
[1723164169794,6.173,162.0,161.94,6.1751]
[1723164170183,6.1734,161.99,161.92,48.2989]
[1723164170708,6.1732,161.99,161.93,6.1752]
[1723164170901,6.173,162.0,161.94,6.175]
[1723164171102,9.67921933,162.02,161.95,6.1746]
[1723164171310,9.67921933,162.02,161.96,1.23473503]
[1723164171495,6.1724,162.01,161.95,48.2963]
[1723164171689,54.2183731,162.09,161.95,48.2963]
[1723164171690,9.67849257,162.03,161.95,48.2963]
[1723164171894,9.67849257,162.03,161.98,15.4337]
[1723164172205,9.67793906,162.05,161.99,7.40717688]
[1723164172380,9.67793906,162.05,162.01,15.4307]
[1723164172582,6.40220698,162.09,162.02,1.23421279]
[1723164172805,9.67541926,162.11,162.08,6.1697]
[1723164173110,6.1667,162.16,162.11,6.1686]
[1723164173321,6.1667,162.16,162.09,1.23372485]
[1723164173502,6.1667,162.16,162.07,15.4251]
[1723164173503,9.67081062,162.16,162.07,15.4251]
[1723164173698,6.168,162.13,162.07,21.5952]
[1723164173903,32.86,162.15,162.07,15.4251]
[1723164174094,9.67081062,162.16,162.07,48.2851]
[1723164174297,9.67081062,162.16,162.08,1.23354016]
[1723164174597,9.67081062,162.16,162.1,15.4223]
[1723164174801,6.1672,162.15,162.1,15.4223]
[1723164175119,32.86,162.15,162.06,15.4255]
[1723164175428,15.83791062,162.16,162.06,15.4255]
[1723164175591,9.67081062,162.16,162.12,6.1681]
[1723164175792,6.1659,162.18,162.12,6.1681]
[1723164176018,6.1663,162.17,162.11,6.1686]
[1723164176202,32.86,162.16,162.09,15.5452]
[1723164176620,6.40551195,162.19,162.09,15.5452]
[1723164176621,32.86,162.18,162.1,1.2336429]
[1723164177021,32.86,162.18,162.1,6.1686]
[1723164177526,32.86,162.12,162.04,15.6927]
[1723164177723,32.86,162.12,162.04,21.8639]
[1723164177903,6.169,162.11,162.05,6.1709]
[1723164178115,6.169,162.11,162.06,6.1705]
[1723164178419,6.1679,162.13,162.07,6.1701]
[1723164178625,6.40622062,162.21,162.1,15.4221]
[1723164178939,6.1673,162.15,162.1,15.4221]
[1723164179100,32.86,162.2,162.1,15.4221]
[1723164179294,6.1652,162.2,162.14,6.1674]
[1723164179534,32.86,162.22,162.1,48.2821]
[1723164179725,6.1658,162.19,162.13,6.1678]
[1723164179887,6.1652,162.2,162.14,6.1674]
[1723164180092,6.1656,162.19,162.14,6.1674]
[1723164180574,15.406,162.28,162.16,15.4159]
[1723164180824,32.86,162.25,162.17,1.23305609]
[1723164180990,32.86,162.25,162.19,6.1655]
[1723164181195,32.86,162.25,162.16,15.4159]
[1723164181412,6.40400491,162.27,162.19,6.1655]
[1723164181600,6.40400491,162.27,162.18,1.23266461]
[1723164181813,6.40400491,162.27,162.15,22.144]
[1723164181814,32.86,162.21,162.15,16.0872]
[1723164181993,1.54176865,162.2,162.1,22.6092]
[1723164182196,6.1675,162.14,162.1,22.6092]
[1723164182517,6.1671,162.15,162.1,22.6092]
[1723164182694,32.86,162.19,162.11,15.4214]
[1723164182900,32.86,162.23,162.1,23.84261339]
[1723164183119,6.1648,162.21,162.15,21.5845]
[1723164183294,6.1653,162.2,162.15,15.4174]
[1723164183495,6.1653,162.2,162.15,21.5844]
[1723164183706,6.1648,162.21,162.15,21.5844]
[1723164184005,6.1653,162.2,162.15,15.4174]
[1723164184499,6.1648,162.22,162.15,15.4174]
[1723164185100,32.86,162.23,162.15,15.4174]
[1723164185316,6.1652,162.2,162.15,15.4174]
[1723164185696,6.1648,162.21,162.15,21.5843]
[1723164186217,32.86,162.23,162.11,48.2807]
[1723164186418,6.1657,162.19,162.14,6.1674]
[1723164186717,32.86,162.25,162.13,32.86]
[1723164186955,6.1637,162.25,162.17,15.4151]
[1723164187119,6.41121043,162.26,162.18,1.23270579]
[1723164187303,32.86,162.29,162.17,32.86]
[1723164187304,6.1626,162.27,162.2,21.5778]
[1723164187623,6.1633,162.25,162.2,15.4129]
[1723164187816,6.1637,162.24,162.2,15.4129]
[1723164188015,32.86,162.29,162.2,6.1648]
[1723164188016,6.1632,162.26,162.2,6.1648]
[1723164188220,9.66827725,162.3,162.22,15.411]
[1723164188901,6.1622,162.28,162.22,15.411]
[1723164189224,6.1622,162.28,162.19,49.0841]
[1723164189225,34.40066079,162.29,162.19,16.2241]
[1723164189401,32.86,162.27,162.19,16.2241]
[1723164189606,6.1633,162.25,162.2,6.1652]
[1723164189805,6.1633,162.25,162.19,16.2241]
[1723164189806,6.1645,162.22,162.19,16.2241]
[1723164190009,6.1645,162.22,162.16,6.1718]
[1723164190207,32.86,162.27,162.17,15.415]
[1723164190423,6.1633,162.25,162.2,6.1651]
[1723164190607,32.86,162.27,162.17,15.415]
[1723164190816,6.1632,162.26,162.2,6.1651]
[1723164191138,6.1633,162.25,162.19,6.1655]
[1723164191300,32.86,162.27,162.17,15.415]
[1723164191622,32.86,162.27,162.2,6.165]
[1723164191834,6.1629,162.26,162.21,6.1648]
[1723164192427,6.1622,162.28,162.22,6.1641]
[1723164192626,9.66827725,162.3,162.24,6.1635]
[1723164192808,9.66827725,162.3,162.23,21.5738]
[1723164192809,6.1618,162.29,162.23,21.5738]
[1723164193002,6.1618,162.29,162.23,15.4099]
[1723164193305,9.66827725,162.3,162.23,15.4099]
[1723164193611,6.1625,162.28,162.23,15.4099]
[1723164193825,6.1625,162.27,162.23,15.4099]
[1723164194031,9.66827725,162.3,162.23,21.5739]
[1723164194325,9.66827725,162.3,162.23,15.4099]
[1723164194514,9.66827725,162.3,162.21,6.1644]
[1723164194828,32.86,162.29,162.19,15.413]
[1723164195028,9.66827725,162.3,162.16,39.0318]
[1723164195029,32.86,162.27,162.16,21.5886]
[1723164195223,6.1662,162.18,162.14,16.4442]
[1723164195535,6.1652,162.2,162.14,22.6116]
[1723164195700,32.86,162.23,162.14,16.4442]
[1723164196104,32.86,162.25,162.14,49.3042]
[1723164196329,32.86,162.25,162.18,15.4143]
[1723164196330,6.1637,162.24,162.18,15.4143]
[1723164196549,32.86,162.27,162.2,6.165]
[1723164196911,6.1634,162.25,162.2,6.165]
[1723164197105,6.164,162.24,162.18,15.4143]
[1723164197304,32.86,162.27,162.18,15.4143]
[1723164197518,39.0229,162.27,162.2,6.1651]
[1723164197732,32.86,162.29,162.21,1.23278729]
[1723164198042,39.0218,162.29,162.21,6.6107]
[1723164198210,39.0218,162.29,162.21,7.84327741]
[1723164198411,39.0218,162.29,162.23,15.4102]
[1723164198628,6.1618,162.29,162.23,21.5742]
[1723164199132,15.82977725,162.3,162.23,15.4102]
[1723164199334,15.82977725,162.3,162.23,21.5739]
[1723164199515,15.82977725,162.3,162.24,15.4702]
[1723164199721,6.1618,162.29,162.24,15.4702]
[1723164200136,9.66827725,162.3,162.24,15.4702]
[1723164200640,32.86,162.29,162.21,6.6107]
[1723164200942,6.1633,162.25,162.21,6.6107]
[1723164201236,9.66827725,162.3,162.21,7.84339333]
[1723164201436,6.1625,162.28,162.21,23.25449333]
[1723164201641,6.1625,162.28,162.22,6.1644]
[1723164201945,6.1625,162.28,162.23,6.164]
[1723164202312,6.1625,162.28,162.22,6.1644]
[1723164202511,6.1625,162.28,162.23,6.164]
[1723164202908,9.66827725,162.3,162.24,15.4092]
[1723164203135,6.1613,162.31,162.25,6.1632]
[1723164203632,6.1615,162.3,162.25,6.1632]
[1723164203808,6.1615,162.3,162.24,22.8051369]
[1723164204010,6.1615,162.3,162.21,6.6107]
[1723164204011,32.86,162.3,162.21,6.6107]
[1723164204214,6.1629,162.26,162.21,6.6107]
[1723164204704,6.1629,162.26,162.21,12.7754]
[1723164204910,6.1626,162.27,162.21,12.7754]
[1723164205539,32.86,162.3,162.21,6.6107]
[1723164205540,6.1633,162.26,162.21,6.6107]
[1723164205843,1.54066424,162.29,162.21,6.6107]
[1723164205844,6.1634,162.25,162.21,6.6107]
[1723164206534,6.1645,162.22,162.19,15.6145]
[1723164206746,6.165,162.21,162.19,15.6145]
[1723164206969,32.86,162.24,162.19,15.6145]
[1723164207313,6.1647,162.22,162.19,15.6145]
[1723164207519,6.165,162.21,162.19,15.6145]
[1723164207734,32.86,162.22,162.13,28.5802]
[1723164207940,1.54146786,162.21,162.13,28.5802]
[1723164208247,6.1664,162.17,162.13,22.4124]
[1723164208417,39.0244,162.22,162.16,6.1666]
[1723164209720,39.024,162.24,162.15,15.4173]
[1723164209924,32.86,162.24,162.15,15.4173]
[1723164210232,6.1648,162.21,162.15,21.5843]
[1723164210538,6.1648,162.21,162.16,6.1667]
[1723164210751,32.86,162.26,162.16,30.8334]
[1723164211051,39.0222,162.28,162.22,6.1644]
[1723164211343,6.1626,162.27,162.22,6.1644]
[1723164211523,6.1626,162.27,162.2,21.5775]
[1723164211844,32.86,162.28,162.16,34.09265881]
[1723164212018,6.165,162.21,162.16,15.416]
[1723164212436,0.61667489,162.17,162.16,15.416]
[1723164213050,0.61667489,162.17,162.16,21.5827]
[1723164213225,32.86,162.28,162.2,15.4126]
[1723164213420,6.1625,162.28,162.2,15.4126]
[1723164213624,6.1625,162.28,162.22,6.1644]
[1723164214321,6.1618,162.29,162.23,7.39665363]
[1723164214534,6.1622,162.28,162.22,6.1644]
[1723164214821,6.1626,162.27,162.22,6.1644]
[1723164215028,6.1626,162.27,162.21,6.1648]
[1723164215239,32.86,162.28,162.19,6.1652]
[1723164215465,6.1645,162.22,162.17,15.4158]
[1723164216346,6.1648,162.21,162.15,6.1667]
[1723164216551,6.1648,162.21,162.13,37.8314]
[1723164216738,6.1642,162.23,162.17,6.1662]
[1723164216932,6.1642,162.23,162.16,15.4168]
[1723164217133,6.1646,162.22,162.16,21.5831]
[1723164217342,6.1645,162.22,162.16,21.5831]
[1723164217629,39.0237,162.24,162.16,15.4168]
[1723164217838,32.86,162.26,162.16,15.4168]
[1723164218155,39.26863535,162.3,162.21,15.412]
[1723164218323,9.66364637,162.32,162.21,21.5767]
[1723164218324,32.86,162.28,162.21,21.5767]
[1723164218526,6.1625,162.27,162.22,6.1643]
[1723164218754,39.0222,162.28,162.22,6.1643]
[1723164219139,6.1627,162.27,162.21,21.5767]
[1723164219662,6.1621,162.29,162.23,6.164]
[1723164219958,6.1623,162.28,162.23,6.164]
[1723164220137,32.86,162.28,162.18,15.4148]
[1723164220345,6.1636,162.25,162.19,6.1654]
[1723164220938,6.1636,162.25,162.2,6.1651]
[1723164221138,6.1636,162.25,162.18,15.4148]
[1723164221346,6.1636,162.25,162.19,6.1655]
[1723164221856,6.1638,162.24,162.19,6.1655]
[1723164222226,6.1633,162.25,162.19,6.1655]
[1723164222450,32.86,162.28,162.18,15.4148]
[1723164222451,6.1645,162.22,162.18,15.4148]
[1723164222649,6.1652,162.2,162.15,21.5849]
[1723164223251,32.86,162.22,162.16,6.1664]
[1723164223452,32.86,162.22,162.15,15.4178]
[1723164223453,32.86,162.22,162.15,21.5848]
[1723164223645,6.1651,162.21,162.15,21.5848]
[1723164225759,6.1636,162.25,162.18,15.4148]
[1723164226138,6.1637,162.24,162.19,6.1656]
[1723164226474,6.1637,162.24,162.18,15.4148]
[1723164226851,6.1637,162.24,162.18,21.5807]
[1723164227248,6.1655,162.2,162.14,21.5853]
[1723164227459,6.1652,162.2,162.14,21.5853]
[1723164227945,39.0246,162.22,162.14,15.4179]
[1723164228376,16.07356895,162.32,162.21,39.4441]
[1723164228541,9.66364637,162.32,162.28,15.4049]
[1723164229040,6.1595,162.36,162.29,7.39395119]
[1723164229240,15.82123321,162.36,162.29,7.39395119]
[1723164229442,6.1597,162.35,162.29,7.39395119]
[1723164229673,9.66173321,162.36,162.31,15.4025]
[1723164229881,6.1587,162.38,162.32,7.39245993]
[1723164230166,9.6585484,162.38,162.3,15.6566]
[1723164230367,42.5185484,162.38,162.3,21.8176]
[1723164230868,6.1588,162.37,162.32,6.1606]
[1723164231441,6.1588,162.37,162.31,12.5389]
[1723164231639,6.1588,162.37,162.31,13.77072796]
[1723164232674,0.61610499,162.32,162.31,13.77072796]
[1723164233170,0.61610499,162.32,162.31,6.3779]
[1723164233679,0.61610499,162.32,162.3,16.88860369]
[1723164234043,0.61610499,162.32,162.31,6.161]
[1723164234367,0.61610499,162.32,162.3,23.04979924]
[1723164234747,0.61610499,162.32,162.31,6.161]
[1723164235140,0.61610499,162.32,162.3,23.04979924]
[1723164235340,0.61610499,162.32,162.31,6.161]
[1723164238851,0.61610499,162.32,162.3,23.04968612]
[1723164239046,0.61610499,162.32,162.3,15.6566]
[1723164239249,0.61610499,162.32,162.28,6.2183]
[1723164239552,0.61610499,162.32,162.3,6.1613]
[1723164239943,0.61610499,162.32,162.3,7.39321344]
[1723164240550,0.61610499,162.32,162.31,6.161]
[1723164240766,0.61610499,162.32,162.3,16.63461344]
[1723164241282,0.61610499,162.32,162.28,6.2183]
[1723164241570,0.61610499,162.32,162.29,1.23198162]
[1723164241873,0.61610499,162.32,162.3,1.23200423]
[1723164242370,0.61610499,162.32,162.29,6.1617]
[1723164242767,0.61610499,162.32,162.29,15.4036]
[1723164243144,0.61610499,162.32,162.3,1.23192096]
[1723164243351,0.61610499,162.32,162.29,15.4036]
[1723164243866,0.61610499,162.32,162.29,21.5653]
[1723164244852,0.61610499,162.32,162.3,6.1614]
[1723164245061,0.61610499,162.32,162.31,6.161]
[1723164245468,0.61610499,162.32,162.3,6.1613]
[1723164246272,0.61610499,162.32,162.29,15.4036]
[1723164246482,0.61610499,162.32,162.3,1.23198493]
[1723164247190,0.61610499,162.32,162.31,1.23198317]
[1723164247508,0.61610499,162.32,162.31,7.39298317]
[1723164248474,0.61610499,162.32,162.31,40.25298317]
[1723164248777,0.61610499,162.32,162.31,85.25298317]
[1723164249275,0.61610499,162.32,162.31,39.021]
[1723164249464,0.61610499,162.32,162.29,21.565]
[1723164249871,0.61610499,162.32,162.29,15.4036]
[1723164250956,6.1613,162.31,162.25,21.5707]
[1723164251171,6.1613,162.31,162.26,21.271]
[1723164251480,0.61610499,162.32,162.27,15.4056]
[1723164251779,0.61610499,162.32,162.29,6.1618]
[1723164251950,0.61610499,162.32,162.3,1.23201278]
[1723164252352,0.61610499,162.32,162.27,15.4056]
[1723164252569,6.1619,162.29,162.23,21.5732]
[1723164252773,6.1614,162.3,162.24,6.1635]
[1723164252974,6.1614,162.3,162.25,6.1631]
[1723164253179,6.77720499,162.31,162.26,6.1628]
[1723164253480,0.61610499,162.31,162.26,6.1628]
[1723164254161,6.77720499,162.31,162.26,6.1628]
[1723164254765,6.77720499,162.31,162.25,7.39548324]
[1723164255283,6.162,162.29,162.23,21.5732]
[1723164255459,32.86,162.3,162.21,16.4247]
[1723164255661,32.86,162.3,162.21,17.65715743]
[1723164255881,6.1622,162.28,162.23,6.164]
[1723164256179,0.61610499,162.31,162.24,1.23245507]
[1723164257490,0.61610499,162.31,162.26,6.1628]
[1723164257655,0.61610499,162.31,162.27,1.23228264]
[1723164258279,6.77720499,162.31,162.27,1.23228264]
[1723164258577,0.61610499,162.31,162.23,15.4101]
[1723164258883,0.61610499,162.31,162.23,16.64255111]
[1723164259260,0.61610499,162.31,162.24,1.23245059]
[1723164259973,6.1621,162.29,162.23,22.80635235]
[1723164260853,6.1621,162.29,162.24,1.2324526]
[1723164261061,0.61610499,162.31,162.26,15.4072]
[1723164261269,0.61610499,162.31,162.27,7.39425906]
[1723164261453,0.61610499,162.31,162.27,7.39435906]
[1723164261669,0.61610499,162.31,162.27,6.1622]
[1723164261867,0.61610499,162.31,162.28,6.162]
[1723164262069,0.61610499,162.31,162.27,7.39465842]
[1723164262378,0.61610499,162.31,162.22,15.4108]
[1723164262584,6.1622,162.28,162.23,6.1637]
[1723164262754,6.1622,162.28,162.24,1.23239384]
[1723164263155,0.61610499,162.31,162.24,1.23239384]
[1723164263377,6.77720499,162.31,162.25,15.4074]
[1723164263572,6.77720499,162.31,162.26,1.23230604]
[1723164263758,6.1615,162.3,162.27,1.23235195]
[1723164264175,6.1615,162.3,162.25,15.4074]
[1723164264360,6.1615,162.3,162.26,1.2323796]
[1723164264570,6.1615,162.3,162.26,1.23237735]
[1723164265092,6.1618,162.29,162.25,15.4074]
[1723164265394,33.47610499,162.31,162.22,1.23231998]
[1723164265395,33.47610499,162.31,162.26,1.23231998]
[1723164265564,32.86,162.29,162.23,1.23244889]
[1723164265758,32.86,162.29,162.21,31.836]
[1723164265759,25.56,162.28,162.24,1.23245037]
[1723164265963,25.56,162.3,162.24,16.64165037]
[1723164266470,31.7215,162.3,162.24,21.5725]
[1723164266677,31.7215,162.3,162.24,22.80487945]
[1723164266967,6.1618,162.29,162.24,22.80487945]
[1723164267970,25.56,162.3,162.24,16.64157945]
[1723164268170,0.61610499,162.31,162.26,6.1625]
[1723164268370,0.61610499,162.31,162.27,1.2322429]
[1723164268864,6.1615,162.3,162.27,1.2322429]
[1723164269072,6.1618,162.29,162.24,15.4092]
[1723164269279,6.1618,162.29,162.24,21.5728]
[1723164269578,25.56,162.28,162.21,22.5891]
[1723164269795,31.7225,162.28,162.21,23.82156011]
[1723164269970,31.7225,162.28,162.22,6.1643]
[1723164270284,25.56,162.3,162.23,26.79247168]
[1723164270585,0.61610499,162.31,162.27,6.1624]
[1723164270785,0.61610499,162.31,162.28,1.2321563]
[1723164271158,0.61610499,162.31,162.26,6.1629]
[1723164271590,0.61610499,162.31,162.26,7.39516786]
[1723164271770,6.1623,162.28,162.23,31.7239]
[1723164271971,0.61610499,162.31,162.22,1.23221451]
[1723164271972,0.61610499,162.31,162.25,25.56]
[1723164272168,0.61610499,162.31,162.26,1.23212117]
[1723164272384,0.61610499,162.31,162.29,6.1617]
[1723164272561,25.56,162.34,162.29,1.23200109]
[1723164273059,25.56,162.34,162.3,1.23197626]
[1723164273958,6.3602,162.38,162.3,1.23197626]
[1723164273959,25.56,162.38,162.31,31.721]
[1723164274567,25.56,162.38,162.32,6.1606]
[1723164274909,25.56,162.38,162.31,40.9623]
[1723164274910,25.56,162.38,162.33,7.39189102]
[1723164275683,31.7186,162.38,162.33,1.23169102]
[1723164276781,31.7186,162.38,162.33,7.39189102]
[1723164276989,25.56,162.38,162.33,7.39189102]
[1723164277186,25.56,162.38,162.33,6.1602]
[1723164278163,31.7184,162.38,162.32,6.1606]
[1723164278670,25.56,162.38,162.33,6.1602]
[1723164278979,25.56,162.38,162.32,6.1606]
[1723164278980,31.7185,162.38,162.32,6.1606]
[1723164279465,25.56,162.38,162.31,15.4023]
[1723164279879,6.1591,162.36,162.31,15.4023]
[1723164280260,6.1587,162.37,162.32,6.1605]
[1723164280462,31.7184,162.38,162.32,6.1605]
[1723164280657,25.56,162.38,162.34,6.1598]
[1723164280884,0.843317,162.43,162.35,26.79165703]
[1723164281084,0.843317,162.43,162.39,21.553]
[1723164281294,0.843317,162.43,162.39,15.395]
[1723164281487,6.999817,162.43,162.39,15.395]
[1723164281676,25.56,162.42,162.36,15.3978]
[1723164281900,25.56,162.4,162.33,21.5606]
[1723164282084,6.1592,162.36,162.3,16.3136]
[1723164282283,6.1592,162.36,162.3,22.4746]
[1723164282592,6.1608,162.32,162.3,16.3136]
[1723164282776,25.56,162.34,162.3,16.3136]
[1723164283287,31.7191,162.36,162.3,16.3136]
[1723164283662,31.7191,162.36,162.3,22.4749]
[1723164283875,6.1596,162.35,162.3,22.4749]
[1723164285193,25.56,162.32,162.26,16.1597]
[1723164285895,25.56,162.32,162.27,6.1624]
[1723164286093,25.56,162.32,162.28,6.162]
[1723164286699,31.7199,162.34,162.29,6.1615]
[1723164287571,25.56,162.34,162.29,6.1615]
[1723164288276,25.56,162.34,162.3,6.1613]
[1723164288471,25.56,162.34,162.31,6.1608]
[1723164288691,25.56,162.36,162.32,6.1606]
[1723164288886,25.56,162.36,162.3,15.4027]
[1723164289767,25.56,162.38,162.33,15.4005]
[1723164290088,25.56,162.38,162.34,1.23169789]
[1723164290276,31.7179,162.4,162.34,1.23169789]
[1723164290465,2.32685462,162.41,162.34,1.23169789]
[1723164290675,25.56,162.42,162.38,6.1583]
[1723164290898,25.56,162.42,162.36,7.39021932]
[1723164291096,6.158,162.39,162.35,15.4687]
[1723164291589,31.7176,162.4,162.35,15.4687]
[1723164291893,25.56,162.4,162.35,30.8674]
[1723164292391,0.843317,162.43,162.36,1.23150141]
[1723164292392,25.56,162.42,162.36,1.23150141]
[1723164292687,25.56,162.42,162.38,6.158]
[1723164292992,25.56,162.42,162.37,15.396]
[1723164293769,25.56,162.42,162.38,6.1583]
[1723164294566,25.56,162.42,162.37,15.396]
[1723164294770,25.56,162.42,162.38,6.158]
[1723164295292,0.843317,162.43,162.38,1.2313321]
[1723164295675,0.843317,162.43,162.38,46.2313321]
[1723164295888,0.843317,162.43,162.4,25.56]
[1723164296107,0.843317,162.43,162.42,31.7168]
[1723164296567,0.843317,162.43,162.4,47.1108]
[1723164296764,0.843317,162.43,162.41,7.38821742]
[1723164297394,0.843317,162.43,162.42,25.56]
[1723164297599,0.843317,162.43,162.42,93.1635]
[1723164297906,9.65259521,162.51,162.46,6.1552]
[1723164298082,21.4272,162.59,162.44,15.3893]
[1723164298083,31.713,162.53,162.47,7.38557046]
[1723164298392,6.1531,162.52,162.46,6.155]
[1723164298601,25.56,162.51,162.44,15.3893]
[1723164298972,25.56,162.53,162.44,15.3893]
[1723164299180,25.56,162.53,162.45,71.79068596]
[1723164299511,25.56,162.53,162.44,15.3893]
[1723164299787,6.1534,162.51,162.45,6.1557]
[1723164299989,25.56,162.53,162.46,1.23065669]
[1723164300166,25.56,162.55,162.5,6.1537]
[1723164300370,25.56,162.55,162.47,31.7147]
[1723164300603,25.56,162.53,162.47,6.1547]
[1723164300775,25.56,162.51,162.43,26.79061681]
[1723164300972,31.7134,162.51,162.43,25.56]
[1723164301175,25.56,162.51,162.43,1.23069908]
[1723164301396,35.20869396,162.55,162.51,6.1533]
[1723164301579,35.20869396,162.55,162.52,6.1529]
[1723164301893,21.4272,162.59,162.51,1.23036928]
[1723164301894,25.56,162.57,162.51,1.23036928]
[1723164302083,9.64702357,162.58,162.56,6.1515]
[1723164302269,0.843317,162.6,162.57,7.38120832]
[1723164302464,0.843317,162.6,162.58,6.1507]
[1723164302675,0.843317,162.6,162.56,15.3784]
[1723164303077,0.843317,162.6,162.58,6.1507]
[1723164303281,0.843317,162.6,162.59,25.56]
[1723164304292,0.843317,162.6,162.59,92.8888]
[1723164304501,6.1463,162.7,162.62,15.3727]
[1723164304699,31.7056,162.72,162.66,6.1477]
[1723164304896,25.56,162.74,162.65,40.9298]
[1723164305111,6.1478,162.66,162.61,15.3736]
[1723164305278,25.56,162.66,162.59,22.3288]
[1723164305479,25.56,162.62,162.55,25.56]
[1723164305678,6.15,162.6,162.54,28.4866]
[1723164305901,32.73,162.63,162.54,22.3344]